Cogmind - Beta 16.1 @@@ ROGUE MODE // 2026.04.10 @ 20:24:55 Player: SunShine214 Result: Destroyed by G-47 Trooper with Particle Gun Performance ------------- Evolutions (3) 1500 Regions Visited (5) 1000 Robots Destroyed (171) 855 Value Destroyed (5198) 5198 Prototype IDs (12) 240 Alien Tech Used (0) 0 Bonus (789) 789 TOTAL SCORE: 9582 Bonus ------- High Alert Combat Kills 789 Cogmind --------- Core Integrity 0/700 Matter 29/300 Energy 100/100 System Corruption 14% Temperature Cool (18) Movement Core (450) Ox8 Location -7/Storage Parts ------- > --- POWER (1) -------- (None) > --- PROPULSION (3) --- (None) > --- UTILITY (6) ------ Large Storage Unit Improved Signal Interpreter Hacking Suite > --- WEAPON (3) ------- Mini Assault Cannon Spear > --- INVENTORY (15) --- Deuterium Engine Improved Cooling System Large Storage Unit Improved Sensor Array Hacking Suite Hacking Suite Hacking Suite Hacking Suite Rocket Array Plasma Cutter Peak State ------------ > --- POWER ------------ Heavy Deuterium Engine > --- PROPULSION ------- Advanced Treads Advanced Treads Medium Treads > --- UTILITY ---------- Improved Cooling System Large Storage Unit Improved Signal Interpreter Improved Medium Armor Plating Powered Armor Hacking Suite > --- WEAPON ----------- Precision Shock Rifle Flak Gun Precision Grenade Launcher > --- INVENTORY -------- Improved Titanium Leg Large Storage Unit Hacking Suite Hacking Suite Hacking Suite Hacking Suite Hacking Suite Mini Assault Cannon Rocket Array Rocket Array Mining Laser Plasma Cutter Spear [Rating: 52] Favorites ----------- Power Heavy Ion Engine Engine Heavy Ion Engine Power Core Micro Nuclear Core Propulsion Advanced Treads Treads Advanced Treads Leg Improved Titanium Leg Utility Hacking Suite Device Sensor Array Storage Large Storage Unit Processor Targeting Computer Hackware Hacking Suite Protection Powered Armor Weapon Heavy Assault Rifle Energy Gun Precision Shock Rifle Energy Cannon Cooled Particle Cannon Ballistic Gun Heavy Assault Rifle Ballistic Cannon Mini Assault Cannon Launcher Grenade Launcher Special Weapon Mining Laser Piercing Weapon Spear Build | -11 -10 -9 -8 -7 -7 ------- Run | Yrd Mat Mat Mat Fac Sto Slots Evolved 6 | . . 2 2 2 . Power . | . . . . . . Propulsion 1 | . . . 1 . . Utility 4 | . . 2 . 2 . Weapon 1 | . . . 1 . . Parts Attached 86 | 6 6 15 19 39 1 Power 6 | 1 . 1 . 4 . Engine 5 | 1 . 1 . 3 . Core 1 | . . . . 1 . Reactor . | . . . . . . Propulsion 21 | 2 2 4 5 8 . Treads 19 | 2 2 4 5 6 . Leg 2 | . . . . 2 . Wheel . | . . . . . . Hover . | . . . . . . Flight . | . . . . . . Utility 24 | 1 2 6 4 10 1 Device 7 | . . 1 1 4 1 Storage 4 | 1 1 1 1 . . Processor 2 | . 1 . . 1 . Hackware 3 | . . . 2 1 . Protection 8 | . . 4 . 4 . Artifact . | . . . . . . Weapon 35 | 2 2 4 10 17 . Energy Gun 13 | 1 . 1 4 7 . Energy Cannon 2 | . . . 1 1 . Ballistic Gun 9 | 1 . 3 3 2 . Ballistic Cannon 3 | . . . 1 2 . Launcher 6 | . 1 . . 5 . Special Weapon 1 | . 1 . . . . Impact Weapon . | . . . . . . Slashing Weapon . | . . . . . . Piercing Weapon 1 | . . . 1 . . Special Melee Weapon . | . . . . . . Unidentified Prototypes 12 | . . 1 2 9 . Parts Lost 30 | . 1 3 6 7 13 Power 2 | . . 1 . . 1 Propulsion 10 | . . 1 2 3 4 Utility 9 | . . . 2 3 4 Weapon 9 | . 1 1 2 1 4 Highest Loss Streak 13 | . 1 2 2 2 13 To Critical Strikes . | . . . . . . Average Backups 12 | . 7 12 14 14 13 Power . | . . . . . 1 Propulsion 1 | . 3 2 1 1 . Utility 7 | . 2 6 9 8 7 Weapon 3 | . 1 3 2 3 3 Tool/Special . | . . . . . . Unused Backups 16 | . 2 2 1 3 8 Power 1 | . . . . . 1 Propulsion 5 | . 2 2 . 1 . Utility 8 | . . . . 2 6 Weapon 1 | . . . 1 . . Tool/Special 1 | . . . . . 1 Average Slot Usage (%) 95 | . 92 95 96 97 81 Engine 7 | . 14 9 9 5 . Core 1 | . . . . 1 5 Treads 22 | . 28 21 25 19 17 Device 3 | . . 10 2 3 1 Storage 9 | . 14 11 9 7 7 Processor 7 | . 7 11 9 7 7 Hackware 9 | . . . 12 13 13 Protection 6 | . . 8 2 11 8 Energy Gun 7 | . 5 1 11 7 4 Ballistic Gun 8 | . 14 18 10 3 4 Ballistic Cannon 3 | . . . 5 5 1 Launcher 3 | . 8 2 . 3 6 Peak Build Rating 52 | 6 8 17 34 52 51 Average Rating 31 | 4 6 12 28 46 40 On Entrance 18 | . 6 8 17 32 50 Avg Prop Armor Cover (%) 3 | . . . . 3 . Naked Turns . | . . . . . . Heaviest Build 64 | 14 34 40 43 64 55 Greatest Support 72 | 40 40 40 66 72 66 Greatest Overweight (x) 8 | . . . 1 2 8 Average Overweight (x) . | . . . . . . Largest Inventory Capacity 15 | 8 15 15 15 15 15 Average Capacity 14 | 6 12 15 15 15 15 Most Carried 15 | 1 12 15 15 15 15 Average Carried 12 | . 7 12 14 14 13 Final Capacity 15 | 8 15 15 15 15 15 Final Carried 15 | 1 11 15 15 15 10 Class Distribution -------------------- 32% | Mutant 22% | Hacker-Gunner 20% | Hacker-Tank 7% | Hacker-Skirmisher 5% | Tank 4% | Hacker-Mutant 3% | Gunner 3% | Scavenger-Gunner Dominant Class ---------------- Mutant | -10/Materials Mutant | -9/Materials Hacker-Gunner | -8/Materials Hacker-Tank | -7/Factory Hacker-Tank | -7/Storage Resources | -11 -10 -9 -8 -7 -7 ----------- Run | Yrd Mat Mat Mat Fac Sto Matter Collected 3356 | 272 349 355 652 1694 34 Remotely . | . . . . . . Salvage Created 5232 | 120 511 622 1199 2389 391 Parts 327 | 9 33 54 70 145 16 Haulers Intercepted 9 | . 2 . 4 2 1 Recyclers Shooed 7 | . 1 1 1 3 1 Parts Field Recycled . | . . . . . . Retrieved Matter . | . . . . . . Parts Self-Destructed . | . . . . . . Prevented . | . . . . . . Parts Restored . | . . . . . . Kills | -11 -10 -9 -8 -7 -7 ------- Run | Yrd Mat Mat Mat Fac Sto Combat Hostiles Destroyed 117 | . 15 16 22 53 11 Guns 55 | . 7 11 17 18 2 Cannons 20 | . . . 5 11 4 AOE 42 | . 8 5 . 24 5 Classes Destroyed 17 | 2 5 3 3 4 . Worker 15 | . . . 4 10 1 Builder 7 | . . 1 . 5 1 Tunneler 3 | 2 . . . 1 . Hauler 9 | . 2 . 4 2 1 Recycler 10 | 1 1 . . 6 2 Mechanic 1 | . . . . 1 . Operator 7 | . 2 2 1 2 . Watcher 2 | . 1 . . . 1 Swarmer 28 | . 10 3 5 6 4 Grunt 51 | . 5 7 9 29 1 Brawler 2 | . . . . 2 . Duelist 1 | . . 1 . . . Protector 1 | . . . . 1 . Sentry 17 | . . 5 5 4 3 Specialist 2 | . . . 2 . . Hunter 5 | . . . 1 2 2 Programmer 10 | . . . . 9 1 Best Kill Streak 17 | 2 3 5 5 17 17 Combat Bots Only 11 | . 3 5 4 8 11 Max Kills in Single Turn 5 | 1 2 2 2 5 3 Gunslinging 1 | . . . 1 1 . Exploded 5 | . 2 2 . 5 2 Melee . | . . . . . . Uniques/NPCs Destroyed . | . . . . . . Combat | -11 -10 -9 -8 -7 -7 -------- Run | Yrd Mat Mat Mat Fac Sto Hostile Shots Fired 801 | . 42 65 161 310 223 Missed 255 | . 13 20 47 101 74 Hits 546 | . 29 45 114 209 149 Melee 10 | . . 6 . 4 . Projectile 536 | . 29 39 114 205 149 Critical Strikes 18 | . 1 3 3 8 3 Part Disruptions 1 | . . . . 1 . Damage Taken 7256 | . 288 743 1650 2923 1652 Core 981 | . 64 39 168 214 496 Absorbed by Shields 152 | . . . . . 152 Redirected to Shielding 3 | . . 3 . . . Regen/Repaired (Parts) 265 | . . . . 265 . Core Remaining (%) 83 | 100 74 90 69 . . Volleys Fired 306 | 4 57 41 65 107 32 Largest 3 | 2 2 2 3 3 2 Hottest 175 | 60 120 70 155 175 91 Shots Fired 664 | 8 95 78 193 249 41 Gun 477 | 8 83 70 163 138 15 Cannon 144 | . . . 30 97 17 Launcher 42 | . 11 8 . 14 9 Special 1 | . 1 . . . . Kinetic 403 | 4 57 54 135 129 24 Thermal 86 | . 1 16 28 41 . Explosive 42 | . 11 8 . 14 9 Electromagnetic 133 | 4 26 . 30 65 8 Robot Hit Streak 18 | 3 11 12 18 14 6 Robot Miss Streak 9 | 1 4 3 9 8 5 Penetration Max . | . . . . . . Secondary Targets 4 | . . 1 2 1 . Max Gunslinging Chain 1 | . . 1 1 1 . Shots Hit Robots 442 | 5 51 49 121 188 28 Core Hits 404 | 4 29 34 74 210 53 Critical Kills . | . . . . . . Critical Parts Destroyed . | . . . . . . Critical Strikes 7 | . 1 1 . 4 1 Burn 1 | . . 1 . . . Blast 4 | . . . . 3 1 Corrupt 1 | . 1 . . . . Impale 1 | . . . . 1 . Melee Attacks 20 | . . . 2 18 . Impact . | . . . . . . Slashing . | . . . . . . Piercing 20 | . . . 2 18 . Sneak Attacks 10 | . . . . 10 . Combat Hostiles . | . . . . . . Follow-up Attacks . | . . . . . . Damage Inflicted 13063 | 76 1103 997 2068 7079 1740 Guns 4884 | 76 620 618 1541 1785 244 Cannons 2528 | . . . 521 1712 295 Explosions 4903 | . 478 379 . 2845 1201 Melee 675 | . . . . 675 . Ramming 73 | . 5 . 6 62 . Kinetic 5117 | 46 389 468 1598 2186 430 Thermal 1292 | . . 150 284 858 . Explosive 4815 | . 478 379 . 2757 1201 Electromagnetic 1091 | 30 231 . 180 541 109 Impact . | . . . . . . Slashing . | . . . . . . Piercing 675 | . . . . 675 . Highest Corruption 14 | . . . 2 13 14 Average Corruption 5 | . . . 1 5 13 Corruption Purged . | . . . . . . Corruption Blocked . | . . . . . . Effects 98 | . . . 17 70 11 Message Errors 29 | . . . 6 20 3 Matter Fused 19 | . . . 3 14 2 Heat Flow Errors 11 | . . . 2 7 2 Energy Discharges 11 | . . . 1 9 1 Parts Rejected 2 | . . . 1 1 . Parts Fused 3 | . . . 1 2 . Data Loss (minor) 12 | . . . 2 10 . Data Loss (major) 5 | . . . . 4 1 Misfires 1 | . . . . 1 . Alerts 1 | . . . . 1 . Weapon Failures 4 | . . . 1 1 2 Overload Shots . | . . . . . . Overflow Damage 285 | . 21 . . 213 51 Projectiles 44 | . . . . 44 . Explosions 79 | . 21 . . 7 51 Melee 162 | . . . . 162 . Knockbacks 28 | . 1 . 13 9 5 Impact 1 | . 1 . . . . Kinetic 26 | . . . 13 9 4 Secondary 1 | . . . . . 1 Self-Inflicted Damage 251 | . 16 51 . 65 119 Shots 11 | . 1 3 . 3 4 Rammed 10 | . 1 1 1 7 . Targets Rammed 11 | . 1 1 1 8 . Kicked . | . . . . . . Crushed 1 | . . . . 1 . Highest Temperature 365 | . 20 45 365 358 201 Average Temperature 94 | . 10 19 103 98 93 Received Heat Transfer 1807 | . 42 168 540 615 442 Effects 6 | . . . 2 4 . Energy Bleed 2 | . . . 1 1 . Interference 3 | . . . . 3 . Damage (minor) 1 | . . . 1 . . Siege Activations . | . . . . . . Martial Activations . | . . . . . . Shielding Activations . | . . . . . . Robots Disrupted 1 | . . . . 1 . Combat Hostiles 1 | . . . . 1 . Robots Corrupted . | . . . . . . Combat Hostiles . | . . . . . . Parts Fried 2 | . . . . 2 . Impact Corruptions . | . . . . . . Robots Melted . | . . . . . . Combat Hostiles . | . . . . . . Parts Melted 3 | . . 1 . 2 . Heat Transferred 2616 | . . 518 629 1469 . Parts Sabotaged . | . . . . . . Parts Stolen . | . . . . . . Parts Stripped . | . . . . . . Power Chain Reactions . | . . . . . . Alert | -11 -10 -9 -8 -7 -7 ------- Run | Yrd Mat Mat Mat Fac Sto Maximum Alert Level 4 | . . 1 . 4 3 Low Security (%) 59 | 100 100 33 100 34 . Level 1 10 | . . 66 . 8 . Level 2 7 | . . . . 10 88 Level 3 21 | . . . . 45 12 Level 4 . | . . . . . . Level 5 . | . . . . . . High Security . | . . . . . . Max Security . | . . . . . . Peak Influence 1101 | 10 152 286 161 1101 741 Initial 499 | . . 42 74 71 499 Average 314 | 1 69 207 78 523 545 Influence Increases 3919 | 15 558 499 651 1734 462 Destroy 0b10 Robot/C 2320 | . 300 320 440 1040 220 Destroy 0b10 Robot/NC 275 | 15 30 15 45 140 30 Destroy Leader 622 | . 76 90 128 254 74 Successful Hack 47 | . . 13 6 28 . Disable Machine 225 | . 45 30 . 105 45 Destroy Structure 340 | . 62 31 2 167 78 Lose Combat Pursuer 90 | . 45 . 30 . 15 Influence Decreases 3188 | 15 458 422 671 792 830 Entered New Map 847 | . . 58 103 86 600 Time Decay 2041 | 15 448 334 508 636 100 Lost Part 300 | . 10 30 60 70 130 Squads Dispatched 30 | . 3 3 2 17 5 Investigation 5 | . . 1 . 3 1 Extermination 8 | . . . . 8 . Reinforcement 15 | . 3 2 2 4 4 Assault 2 | . . . . 2 . Garrison . | . . . . . . Intercept . | . . . . . . Searches Triggered . | . . . . . . Construction Impeded 3 | . . . . 2 1 Haulers Reinforced 1 | . . . . 1 . Active Scanning Responses . | . . . . . . Cargo Convoy Interrupts . | . . . . . . Stealth | -11 -10 -9 -8 -7 -7 --------- Run | Yrd Mat Mat Mat Fac Sto Distress Signals 6 | . 1 . 3 1 1 Communications Jammed . | . . . . . . Distress Signals . | . . . . . . Times Spotted 177 | . 32 25 37 65 18 Peak Tracking Total 10 | . 4 6 4 10 7 Tactical Retreats 5 | . 2 . 2 . 1 Traps | -11 -10 -9 -8 -7 -7 ------- Run | Yrd Mat Mat Mat Fac Sto Traps Triggered 8 | . 2 . 2 3 1 Indirectly . | . . . . . . Trap Hack Attempts . | . . . . . . Triggered . | . . . . . . Disarmed . | . . . . . . Reprogrammed . | . . . . . . Reused . | . . . . . . Traps Extracted . | . . . . . . Installed . | . . . . . . Triggered . | . . . . . . Machines | -11 -10 -9 -8 -7 -7 ---------- Run | Yrd Mat Mat Mat Fac Sto Machines Disabled 17 | . 5 2 . 7 3 Max in Single Turn 2 | . 2 1 . 2 2 Garrison Access 2 | . . . 1 . 1 Machines Repaired . | . . . . . . Machines Dismantled . | . . . . . . Machines Sabotaged . | . . . . . . Overloaded Fab Kills . | . . . . . . Hacking | -11 -10 -9 -8 -7 -7 --------- Run | Yrd Mat Mat Mat Fac Sto Machines Accessed 25 | . 2 2 4 14 3 Terminals 14 | . 2 2 3 5 2 Fabricators 4 | . . . . 4 . Repair Stations 2 | . . . . 2 . Recycling Units . | . . . . . . Scanalyzers 3 | . . . . 3 . Garrison Access 2 | . . . 1 . 1 Total Hacks 54 | . 3 4 8 33 6 Successful 28 | . 1 2 3 20 2 Failed 25 | . 2 2 5 12 4 Catastrophic 10 | . 2 . 2 5 1 Database Lockouts 1 | . . . . 1 . Manual 21 | . 3 1 7 7 3 Terminals 25 | . 3 4 7 7 4 Fabricators 11 | . . . . 11 . Repair Stations 6 | . . . . 6 . Recycling Units . | . . . . . . Scanalyzers 9 | . . . . 9 . Garrison Access 3 | . . . 1 . 2 Terminal Hacks 7 | . 1 2 2 1 1 Open Door 1 | . . . . . 1 Branch Access Points 3 | . . 1 1 1 . Alert Level 1 | . . . 1 . . Recall Reinforcements 1 | . 1 . . . . Zone Layout 1 | . . 1 . . . Fabricator Hacks 7 | . . . . 7 . Network Status 1 | . . . . 1 . Load Schematic 2 | . . . . 2 . Build 4 | . . . . 4 . Repair Station Hacks 4 | . . . . 4 . Scan Component 2 | . . . . 2 . Repair 2 | . . . . 2 . Recycling Unit Hacks . | . . . . . . Scanalyzer 8 | . . . . 8 . Insert Component 2 | . . . . 2 . Analyze 2 | . . . . 2 . Retrieve Study 4 | . . . . 4 . Garrison Access Hacks 2 | . . . 1 . 1 Seal Access 2 | . . . 1 . 1 Unauthorized Hacks . | . . . . . . Terminals . | . . . . . . Fabricators . | . . . . . . Repair Stations . | . . . . . . Recycling Units . | . . . . . . Scanalyzers . | . . . . . . Garrison Access . | . . . . . . Data Cores Recovered . | . . . . . . Used . | . . . . . . Hacking Detections 18 | . 2 2 3 10 1 Full Trace Events 4 | . . . 1 2 1 Feedback Events . | . . . . . . Feedback Blocked . | . . . . . . Robot Schematics Acquired . | . . . . . . Robots Built 1 | . . . . 1 . Authchips . | . . . . . . Time 81 | . . . . 81 . Total Robot Build Rating 1 | . . . . 1 . Part Schematics Acquired 2 | . . . . 2 . Parts Built 6 | . . . . 6 . Authchips . | . . . . . . Time 113 | . . . . 113 . Total Part Build Rating 24 | . . . . 24 . Part Studies Acquired 4 | . . . . 4 . Parts Repaired 2 | . . . . 2 . Time 82 | . . . . 82 . Parts Recycled . | . . . . . . Recycled Matter . | . . . . . . Retrieved Matter . | . . . . . . Retrieved Components . | . . . . . . Parts Scanalyzed 2 | . . . . 2 . Part Schematics Acquired 2 | . . . . 2 . Parts Damaged . | . . . . . . Bothacking | -11 -10 -9 -8 -7 -7 ------------ Run | Yrd Mat Mat Mat Fac Sto Used RIF Installer . | . . . . . . Robots Hacked . | . . . . . . Non-combat . | . . . . . . Combat . | . . . . . . Robot Hacks Applied . | . . . . . . Relay Couplers Released 3 | . . . . 3 . Programmers 3 | . . . . 3 . Fabnet Peak Effective % . | . . . . . . Robots Rewired . | . . . . . . Allies Hacked . | . . . . . . Hacks Repelled . | . . . . . . Allies | -11 -10 -9 -8 -7 -7 -------- Run | Yrd Mat Mat Mat Fac Sto Total Allies 1 | . . . . 1 . Largest Group 1 | . . . . 1 . Highest-Rated Group 10 | . . . . 10 . Highest-Rated Ally 10 | . . . . 10 . Total Orders . | . . . . . . Ally Attacks . | . . . . . . Total Damage . | . . . . . . Kills . | . . . . . . Allies Corrupted . | . . . . . . Allies Melted . | . . . . . . Intel | -11 -10 -9 -8 -7 -7 ------- Run | Yrd Mat Mat Mat Fac Sto Active Infowar (turns) 2475 | . . 710 181 1584 . Sensors 2475 | . . 710 181 1584 . Robot Analysis Total . | . . . . . . Derelict Logs Recovered . | . . . . . . Drone Launches . | . . . . . . Drone Recoveries . | . . . . . . Exploration | -11 -10 -9 -8 -7 -7 ------------- Run | Yrd Mat Mat Mat Fac Sto Turns Passed 7625 | 90 1412 748 1518 3657 200 Spaces Moved 3746 | 46 714 356 791 1763 76 Core 5 | 4 . . . . 1 Treads 3555 | 42 714 356 791 1579 73 Legs 186 | . . . . 184 2 Wheels . | . . . . . . Hover . | . . . . . . Flight . | . . . . . . Fastest Speed 50 | 50 160 160 145 145 145 Average Speed 160 | 150 160 160 154 163 150 Slowest Speed 450 | 160 160 160 240 225 450 Overloaded Moves . | . . . . . . Propulsion Burnouts . | . . . . . . Robots Hopped . | . . . . . . Potential Cave-ins . | . . . . . . Cave-ins Triggered . | . . . . . . Exploration Rate (%) 45 | 3 92 44 69 40 25 Regions Visited 5 Branch Regions 1 Pre-discovered Areas . | . . . . . . Known Exits Taken 1 | . . . . 1 . Unknown Exits Taken 4 | 1 1 1 1 . . Scrap Searched . | . . . . . . Spaces Dug 1 | . . . 1 . . Terrain Destroyed 391 | . 57 29 1 216 88 Melee 1 | . . . 1 . . Projectile 17 | . . . . 12 5 AOE 373 | . 57 29 . 204 83 Terrain Rammed . | . . . . . . Walls Destroyed . | . . . . . . Machines Disabled . | . . . . . . Actions | -11 -10 -9 -8 -7 -7 --------- Run | Yrd Mat Mat Mat Fac Sto Total 4717 | 56 886 459 934 2265 117 Wait 430 | . 92 22 41 271 4 Move 3741 | 45 713 355 790 1762 76 Hop . | . . . . . . Pick Up 46 | 1 11 12 6 16 . Fast Attach 25 | 6 3 2 7 7 . Attach 23 | . 1 4 5 8 5 Detach 3 | . 1 . 1 1 . Swap 71 | . 4 10 10 47 . Drop 41 | . 3 12 6 20 . Fire 306 | 4 57 41 65 107 32 Melee 20 | . . . 2 18 . Ram . | . . . . . . Kick . | . . . . . . Crush 11 | . 1 1 1 8 . Escape Stasis . | . . . . . . Rewire . | . . . . . . Trap . | . . . . . . Miscellaneous . | . . . . . . Route ------- -11/Scrapyard -10/Materials (discovered 6 exits: *Mat x3 / [*Min x2] / [*Sub]) -9/Materials (discovered 2 exits: *Mat / Min) -8/Materials -7/Factory (discovered 3 exits: *Sto / Low x2) -7/Storage History --------- Turn | Location | Event 25 | -11/Scrapyard | Discovered new exit (range 16) 91 | -11/Scrapyard | Entered Materials 200 | -10/Materials | Discovered new exit (range 7) 301 | -10/Materials | Build established: Mutant 380 | -10/Materials | Discovered new exit (range 15) 535 | -10/Materials | Discovered new exit (range 16) 559 | -10/Materials | Discovered new exit (range 13) 991 | -10/Materials | Derelicts attacked the area 1018 | -10/Materials | Discovered new exit (range 10) 1441 | -10/Materials | Discovered new exit (range 6) 1503 | -10/Materials | Entered another Materials area 1503 | -9/Materials | Evolved 2 slots: Utility x2 1676 | -9/Materials | Identified exit to Mines 2233 | -9/Materials | Discovered new exit (range 11) 2251 | -9/Materials | Entered another Materials area 2251 | -8/Materials | Evolved 2 slots: Propulsion x1, Weapon x1 2552 | -8/Materials | Discovered new exit (range 11) 2837 | -8/Materials | Found Powered Armor 2840 | -8/Materials | Found Powered Armor 3103 | -8/Materials | Build established: Hacker-Gunner 3769 | -8/Materials | Entered Factory 3769 | -7/Factory | Evolved 2 slots: Utility x2 3912 | -7/Factory | Fabricated A-02 Transporter? 3950 | -7/Factory | Repaired Adv. Treads 4190 | -7/Factory | P-60 Hacker assimilated allied Transporter 4a 4382 | -7/Factory | Fabricated Adv. Treads (x2) 4814 | -7/Factory | Central database locked down 4858 | -7/Factory | Build established: Hacker-Skirmisher 4909 | -7/Factory | Repaired Powered Armor 5082 | -7/Factory | Found Prototype Launcher 5082 | -7/Factory | Identified Rocket Array 5085 | -7/Factory | Found Rocket Array 5395 | -7/Factory | Destroyed 8 combat bots 5915 | -7/Factory | Build established: Tank 6172 | -7/Factory | Fabricated Adv. Shield Generator (x2) 6292 | -7/Factory | Build established: Hacker-Tank 6569 | -7/Factory | First assault squad dispatched 6984 | -7/Factory | System corruption reached 10% 7209 | -7/Factory | Identified exit to Storage 7209 | -7/Factory | Identified exit to Lower Caves 7381 | -7/Factory | Fabricated Adv. Treads (x2) 7426 | -7/Factory | Entered Storage 7579 | -7/Storage | Core integrity fell below 50% 7610 | -7/Storage | Core integrity fell below 20% 7626 | -7/Storage | Destroyed by G-47 Trooper with Particle Gun Last Messages --------------- 07581_ The unstable cave ceiling collapses. 07582_ Adv. Treads+ destroyed. 07588_ Y-54 Guardian destroyed. 07590_ G-47 Trooper knocked back. 07594_ S-27 Virus destroyed. 07598_ G-47 Trooper Imp. Heat Sink blasted off. 07601_ Acquired 5 matter. 07604_ G-47 Trooper destroyed. 07605_ Aluminum Leg destroyed. 07605_ Critical hit (Burn: +37). 07606_ G-47 Trooper knocked back. 07610_ System corrupted: Matter fused (-8). 07617_ U-05 Engineer builds a Door. 07618_ The unstable cave ceiling collapses. 07618_ Ion Engine crushed. 07619_ Y-54 Guardian destroyed. 07621_ G-47 Trooper knocked back. 07623_ U-05 Engineer builds a Wall. 07623_ Acquired 29 matter. 07624_ R-06 Scavenger collects Gauss Rifle. Map ----- +----------------------------------------------------+ | | | | | | | | | ?????????????????????????????????????????????????? | | ###########??????????????????????????????????????? | | # ##""G""#????#######???????????????????????????? | | "" ""###### #???????????????????????????? | | #???????????????????????????? | | T #???????????????????????????? | | #???????????????????????????? | | # #####+#### #???????????????????????????? | | ##??? ??## ##???????????????????????????? | | #####???? ???# #????????????????????????????? | | !#?????? ??# #?????????????? #???????????? | | !#?????? ??# #?????????????# !?????????? | | !#????? ?# #???#####??### !?????????? | | !#????? ?# ##### ? ????????? | | ###????# ## ## "" # ????????? | | ???????# ## #?""" """" ???????? | | ???????# ## #?"T """" [[[ ???????? | | ???????# + #?""" """" #[%[ ???????? | | ???????# ###+###?"" " %/=# # #??????? | | ???????######### #?## =% # #???????? | | ???????????????# #?#; g% #????????? | | ???????????????# ####@=;% ?????? | | ???????????????# + u[g%%= [ ?????? | | ???????????????# ####### # % # ?????? | | ???????????????# #???? a#r ?????? | | ???????????????# #??# ??????? | | ???????????????# #??#"" = # #?????? | | ???????????????# #??#"T # #?????? | | ???????????????# #??#"" # "???????? | | ???????????????# #??# # """ ???????? | | ???????????????# #??####/###% ????????? | | ???????????????#######?????? ??#[ ?? ????????? | | ???????????????????????????? ???*## ## ??????????? | | ???????????????????????????? ??? ?? #????????????? | | ???????????????????????????? ??? ??? ????????????? | | ???????????????????????????? ???+????????????????? | | ???????????????????????????? ??? ????????????????? | | ???????????????????????????? ??? ????????????????? | | ???????????????????????????????? ????????????????? | | ?????????????????????????????????????????????????? | | ?????????????????????????????????????????????????? | | ?????????????????????????????????????????????????? | | ?????????????????????????????????????????????????? | | ?????????????????????????????????????????????????? | | ?????????????????????????????????????????????????? | | ?????????????????????????????????????????????????? | +----------------------------------------------------+ Best States ------------- Heat Dissipation 61 Energy Generation 18 Energy Capacity 310 Matter Stores 300 Matter Capacity 300 Sight Range 16 Robot Scan Range 15 Terrain Scan Density 10 Armor Coverage 625 Core Shielding 20 Evasion (%) 40 Targeting Accuracy 5 Recoil Reduction 3 Offensive Hacking 20 Item Schematics ----------------- Powered Armor | -7/Factory | Scanalyzed Adv. Treads | -7/Factory | Scanalyzed Robot Schematics ------------------ None Fabricated ------------ A-02 Transporter | x1 | -7/Factory | Preloaded Adv. Treads | x2 | -7/Factory Adv. Shield Generator | x2 | -7/Factory | Preloaded Adv. Treads | x2 | -7/Factory Repaired ---------- Adv. Treads | 30% | -7/Factory Powered Armor | 18% | -7/Factory Studied --------- Plasma Cutter | -7/Factory | Hacked Adv. Treads | -7/Factory | Hacked Spear | -7/Factory | Hacked Mni. Grenade Launcher | -7/Factory | Hacked Alien Tech Used ----------------- None Achievements -------------- None Challenges ------------ None Game ------ Seed HybridIntegrityFacilitator Manual? 0 Play Time 00:48:42 Cumulative 129.1 hours Start 2026.04.10 @ 14:06:54 End 2026.04.10 @ 20:24:55 Sessions 1 Manual Loads 0 Difficulty Rogue Special Mode None Game No. 198 Rogue 198 Adventurer 0 Explorer 0 Win Type - Total 1 Types 1/0/0/0/0/0/0/0/0/0 Lore% 50 Gallery% 53 Achievement% 41 Wizard Run 0 Options --------- Layout 1 ASCII 0 Keyboard 1 Movement Arrows Keybinds 0 Fullscreen 1 Font 24/Smallcaps Map View 50x35 Zoom Use 0% Tactical HUD 1 Map Filters NONE Filters NONE Steam 1 RUN: b8a8e167-297b-48ae-8d28-f0e86d0fd573